Workbook

Sheet Foglio3
A1: PUNTEGGIO CLASSIFICA ASSOLUTA SOCIETA' XXXV CIRCUITO MASTER OLD STARS 2022 - CARPANI SCI
A3: SOCIETA' | B3: TONALE | E3: APRICA | H3: TEMU | K3: BORNO | N3: BORNO | Q3: APRICA | T3: APRICA | W3: CHIESA V.
B5: F | C5: M | D5: Totale | E5: F | F5: M | G5: Totale | H5: F | I5: M | J5: Totale | K5: F | L5: M | M5: Totale | N5: F | O5: M | P5: Totale | Q5: F | R5: M | S5: Totale | T5: F | U5: M | V5: Totale | W5: F | X5: M | Y5: Totale
A6: G.S.A. Marinelli | C6: 56 | D6: =B6+C6 -> 56 | E6: 100 | F6: 40 | G6: =E6+F6 -> 140 | L6: 81 | M6: =K6+L6 -> 81 | O6: 81 | P6: =N6+O6 -> 81 | R6: 56 | S6: =Q6+R6 -> 56 | U6: 46 | V6: =T6+U6 -> 46 | X6: 18 | Y6: =W6+X6 -> 18
A7: S.C. Cernobbio | B7: 230 | C7: 804 | D7: 1034 | E7: 230 | F7: 876 | G7: =E7+F7 -> 1106 | H7: 60 | I7: 760 | J7: =H7+I7 -> 820 | K7: 190 | L7: 310 | M7: =K7+L7 -> 500 | N7: 190 | O7: 310 | P7: =N7+O7 -> 500 | Q7: 221 | R7: 551 | S7: =Q7+R7 -> 772 | T7: 221 | U7: 597 | V7: =T7+U7 -> 818 | W7: 187 | X7: 1010 | Y7: =W7+X7 -> 1197
A8: S.C. La Recastello | B8: 405 | C8: 674 | D8: 1079 | E8: 625 | F8: 728 | G8: 1353 | H8: 570 | I8: 785 | J8: =H8+I8 -> 1355 | K8: 505 | L8: 898 | M8: =K8+L8 -> 1403 | N8: 505 | O8: 927 | P8: 1432 | Q8: 580 | R8: 858 | S8: 1438 | T8: 580 | U8: 843 | V8: 1423 | W8: 510 | X8: 706 | Y8: 1216
A9: S.C. Ski Mountain | B9: 160 | C9: 1033 | D9: 1193 | E9: 180 | F9: 1113 | G9: 1293 | H9: 180 | I9: 1101 | J9: 1281 | K9: 100 | L9: 898 | M9: 998 | N9: 100 | O9: 918 | P9: 1018 | Q9: 150 | R9: 946 | S9: 1096 | T9: 150 | U9: 921 | V9: 1071 | W9: 280 | X9: 1001 | Y9: 1281
A11: SOCIETA' | B11: CHIESA V. | E11: TONALE | H11: TONALE | K11: LIZZOLA | N11: LIZZOLA | Q11: APRICA | T11: APRICA | W11: Femminile | Y11: Maschile | Z11: TOTALE
B12: F | C12: M | D12: Totale | E12: F | F12: M | G12: Totale | H12: F | I12: M | J12: Totale | K12: F | L12: M | M12: Totale | N12: F | O12: M | P12: Totale | Q12: F | R12: M | S12: Totale | T12: F | U12: M | V12: Totale
A13: G.S.A. Marinelli | C13: 18 | D13: =B13+C13 -> 18 | F13: 56 | G13: =E13+F13 -> 56 | I13: 48 | J13: =H13+I13 -> 48 | K13: 100 | L13: 58 | M13: =K13+L13 -> 158 | N13: 100 | O13: 56 | P13: =N13+O13 -> 156 | R13: 35 | S13: =SUM(Q13:R13) -> 35 | U13: 35 | V13: =SUM(T13:U13) -> 35 | W13: 300 | Y13: 684 | Z13: =SUM(W13:Y13) -> 984
A14: S.C. Cernobbio | B14: 275 | C14: 1126 | D14: =B14+C14 -> 1401 | E14: 190 | F14: 789 | G14: =E14+F14 -> 979 | H14: 185 | I14: 752 | J14: =H14+I14 -> 937 | K14: 271 | L14: 470 | M14: =K14+L14 -> 741 | N14: 266 | O14: 401 | P14: =N14+O14 -> 667 | Q14: 262 | R14: 1007 | S14: =SUM(Q14:R14) -> 1269 | T14: 267 | U14: 1306 | V14: =SUM(T14:U14) -> 1573 | W14: 3245 | Y14: 11069 | Z14: =SUM(W14:Y14) -> 14314
A15: S.C. La Recastello | B15: 496 | C15: 651 | D15: 1147 | E15: 636 | F15: 651 | G15: 1287 | H15: 720 | I15: 648 | J15: 1368 | K15: 540 | L15: 816 | M15: 1356 | N15: 545 | O15: 797 | P15: 1342 | Q15: 716 | R15: 611 | S15: 1327 | T15: 696 | U15: 1278 | V15: 1974 | W15: 8629 | Y15: 11871 | Z15: 20500
A16: S.C. Ski Mountain | B16: 280 | C16: 964 | D16: 1244 | E16: 241 | F16: 1180 | G16: 1421 | H16: 241 | I16: 1251 | J16: 1492 | K16: 340 | L16: 1384 | M16: 1724 | N16: 340 | O16: 1425 | P16: 1765 | Q16: 326 | R16: 1640 | S16: 1966 | T16: 400 | U16: 1650 | V16: 2050 | W16: 3468 | Y16: 17425 | Z16: 20893
B20: CLASSIFICA ASSOLUTA FEMMINILE SOCIETA' 2022
A22: Classifica Assoluta
A23: Femminile
B24: Tonale | C24: Aprica | D24: Temu' | E24: Borno | F24: Borno | G24: Aprica | H24: Aprica | I24: Chiesa | J24: Chiesa | K24: Tonale | L24: Tonale | M24: Lizzola | N24: Lizzola | O24: Aprica | P24: Aprica | Q24: TOT | R24: Posiz.
A25: S.C. La Recastello | B25: 100 | C25: 100 | D25: 100 | E25: 100 | F25: 100 | G25: 100 | H25: 100 | I25: 100 | J25: 100 | K25: 100 | L25: 100 | M25: 100 | N25: 100 | O25: 100 | P25: 100 | Q25: =SUM(B25:P25) -> 1500 | R25: 1
A26: S.C. Ski Mountain | B26: 60 | C26: 60 | D26: 80 | E26: 60 | F26: 60 | G26: 60 | H26: 60 | I26: 80 | J26: 80 | K26: 80 | L26: 80 | M26: 80 | N26: 80 | O26: 80 | P26: 80 | Q26: =SUM(B26:P26) -> 1080 | R26: 2
A27: S.C. Cernobbio | B27: 80 | C27: 80 | D27: 60 | E27: 80 | F27: 80 | G27: 80 | H27: 80 | I27: 60 | J27: 60 | K27: 60 | L27: 60 | M27: 60 | N27: 60 | O27: 60 | P27: 60 | Q27: =SUM(B27:P27) -> 1020 | R27: 3
A28: G.S.A. Marinelli | C28: 50 | M28: 50 | N28: 50 | Q28: =SUM(B28:P28) -> 150 | R28: 4
C32: CLASSIFICA ASSOLUTA MASCHILE SOCIETA' 2022
A34: Classifica Assoluta
A35: Maschile
B36: Tonale | C36: Aprica | D36: Temu' | E36: Borno | F36: Borno | G36: Aprica | H36: Aprica | I36: Chiesa | J36: Chiesa | K36: Tonale | L36: Tonale | M36: Lizzola | N36: Lizzola | O36: Aprica | P36: Aprica | Q36: TOT | R36: Posiz.
A37: S.C. Ski Mountain | B37: 100 | C37: 100 | D37: 100 | E37: 100 | F37: 80 | G37: 100 | H37: 100 | I37: 80 | J37: 80 | K37: 100 | L37: 100 | M37: 100 | N37: 100 | O37: 100 | P37: 100 | Q37: =SUM(B37:P37) -> 1440 | R37: 1
A38: S.C. Cernobbio | B38: 80 | C38: 80 | D38: 60 | E38: 60 | F38: 60 | G38: 60 | H38: 60 | I38: 100 | J38: 100 | K38: 80 | L38: 80 | M38: 60 | N38: 60 | O38: 80 | P38: 80 | Q38: =SUM(B38:P38) -> 1100 | R38: 2
A39: S.C. La Recastello | B39: 60 | C39: 60 | D39: 80 | E39: 100 | F39: 100 | G39: 80 | H39: 80 | I39: 60 | J39: 60 | K39: 60 | L39: 60 | M39: 80 | N39: 80 | O39: 60 | P39: 60 | Q39: =SUM(B39:P39) -> 1080 | R39: 3
A40: G.S.A. Marinelli | B40: 50 | C40: 50 | E40: 50 | F40: 50 | G40: 50 | H40: 50 | I40: 50 | J40: 50 | K40: 50 | L40: 50 | M40: 50 | N40: 50 | O40: 50 | P40: 50 | Q40: =SUM(B40:P40) -> 700 | R40: 4
A43: CLASSIFICA ASSOLUTA PER SOCIETA' - XXXV EDIZIONE MASTER OLD STARS 2022 - CARPANI SCI
E44: VIIII TROFEO BANCA Mediolanum
A46: Classifica Assoluta
A47: Maschile e Femminile
B48: Tonale | C48: Aprica | D48: Temu' | E48: Borno | F48: Borno | G48: Aprica | H48: Aprica | I48: Chiesa | J48: Chiesa | K48: Tonale | L48: Tonale | M48: Lizzola | N48: Lizzola | O48: Aprica | P48: Aprica | Q48: TOT | R48: Posiz.
A49: S.C. Ski Mountain | B49: 100 | C49: 80 | D49: 80 | E49: 80 | F49: 80 | G49: 80 | H49: 80 | I49: 100 | J49: 80 | K49: 100 | L49: 100 | M49: 100 | N49: 100 | O49: 100 | P49: 100 | Q49: =SUM(B49:P49) -> 1360 | R49: 1
A50: S.C. La Recastello | B50: 80 | C50: 100 | D50: 100 | E50: 100 | F50: 100 | G50: 100 | H50: 100 | I50: 80 | J50: 60 | K50: 80 | L50: 80 | M50: 80 | N50: 80 | O50: 80 | P50: 60 | Q50: =SUM(B50:P50) -> 1280 | R50: 2
A51: S.C. Cernobbio | B51: 60 | C51: 60 | D51: 60 | E51: 60 | F51: 60 | G51: 60 | H51: 60 | I51: 60 | J51: 100 | K51: 60 | L51: 60 | M51: 60 | N51: 60 | O51: 60 | P51: 80 | Q51: =SUM(B51:P51) -> 960 | R51: 3
A52: G.S.A. Marinelli | B52: 50 | C52: 50 | E52: 50 | F52: 50 | G52: 50 | H52: 50 | I52: 50 | J52: 50 | K52: 50 | L52: 50 | M52: 50 | N52: 50 | O52: 50 | P52: 50 | Q52: =SUM(B52:P52) -> 700 | R52: 4

Sheet Foglio4

Sheet Foglio5

Sheet Foglio6

Sheet Foglio7

Sheet Foglio8

Sheet Foglio9

Sheet Foglio10

Sheet Foglio11

Sheet Foglio12

Sheet Foglio13

Sheet Foglio14

Sheet Foglio15

Sheet Foglio16
